lending/lending_fUSD_20250808
["ID","MTS","AMOUNT","RATE_DAILY","PERIOD"]
[378033314,1754674363568,-907.31,0.00021953,2]
[378033315,1754674363582,-635.96,0.00021953,2]
[378033316,1754674363596,-516.43,0.00021953,2]
[378033317,1754674363610,-2511.44,0.00021953,2]
[378033318,1754674363624,-841.87,0.00021953,2]
[378033319,1754674363636,-400.0,0.00021953,2]
[378033320,1754674363649,-909.41,0.00021953,2]
[378033321,1754674363662,-400.0,0.00021953,2]
[378033322,1754674363675,-633.54,0.00021953,2]
[378033323,1754674363688,-1757.88,0.00021953,2]
[378033324,1754674363701,-3698.85,0.00021953,2]
[378033325,1754674363715,-400.0,0.00021953,2]
[378033326,1754674363729,-748.76,0.00021953,2]
[378033327,1754674363742,-1660.57,0.00021953,2]
[378033328,1754674363758,-466.12,0.00021953,2]
[378033329,1754674363773,-724.03,0.00021953,2]
[378033330,1754674363787,-2130.8,0.00021953,2]
[378033331,1754674363801,-420.45,0.00021953,2]
[378033332,1754674363816,-1000.99,0.00021953,2]
[378033333,1754674363830,-956.66,0.00021953,2]
[378033334,1754674363844,-825.21,0.00021953,2]
[378033335,1754674363857,-1301.7,0.00021953,2]
[378033336,1754674363871,-400.0,0.00021953,2]
[378033337,1754674363884,-1094.31,0.00021953,2]
[378033338,1754674363899,-815.06,0.00021953,2]
[378033339,1754674363912,-498.58,0.00021953,2]
[378033340,1754674363925,-1195.76,0.00021953,2]
[378033341,1754674363940,-442.27,0.00021953,2]
[378033342,1754674363953,-552.06,0.00021953,2]
[378033343,1754674363967,-484.27,0.00021953,2]
[378033344,1754674363980,-624.41,0.00021953,2]
[378033345,1754674363994,-844.68,0.00021953,2]
[378033346,1754674364010,-2556.32,0.00021953,2]
[378033347,1754674364024,-440.75,0.00021953,2]
[378033348,1754674364037,-1182.8,0.00021953,2]
[378033349,1754674364051,-1893.37,0.00021953,2]
[378033350,1754674364064,-400.0,0.00021953,2]
[378033351,1754674364078,-524.52,0.00021953,2]
[378033352,1754674364092,-3101.03,0.00021953,2]
[378033353,1754674364109,-520.64,0.00021953,2]
[378033354,1754674364122,-616.08,0.00021953,2]
[378033355,1754674364136,-732.88,0.00021953,2]
[378033356,1754674364150,-856.38,0.00021953,2]
[378033357,1754674364166,-4832.78,0.00021953,2]
[378033358,1754674364180,-627.0,0.00021953,2]
[378033359,1754674364193,-952.86,0.00021953,2]
[378033360,1754674364206,-400.0,0.00021953,2]
[378033361,1754674364219,-480.32,0.00021953,2]
[378033362,1754674364232,-1841.68,0.00021953,2]
[378033363,1754674364246,-400.0,0.00021953,2]
[378033364,1754674364260,-3627.65,0.00021953,2]
[378033365,1754674364273,-803.51,0.00021953,2]
[378033366,1754674364286,-429.23,0.00021953,2]
[378033367,1754674364298,-781.89,0.00021953,2]
[378033368,1754674364312,-467.89,0.00021953,2]
[378033369,1754674364325,-1163.42,0.00021953,2]
[378033370,1754674364338,-1771.62,0.00021953,2]
[378033371,1754674364351,-585.49,0.00021953,2]
[378033372,1754674364744,-784.71,0.00021953,2]
[378033373,1754674364771,-842.16,0.00021953,2]
[378033374,1754674364780,-971.72,0.00021953,2]
[378033375,1754674364789,-1364.1,0.00021953,2]
[378033376,1754674364799,-437.29,0.00021953,2]
[378033377,1754674364808,-498.13,0.00021953,2]
[378033378,1754674364817,-4194.96,0.00021953,2]
[378033379,1754674364827,-3720.86,0.00021953,2]
[378033380,1754674364837,-482.49,0.00021953,2]
[378033381,1754674364846,-932.41,0.00021953,2]
[378033382,1754674364855,-400.0,0.00021953,2]
[378033383,1754674364865,-467.73,0.00021953,2]
[378033384,1754674364874,-694.04,0.00021953,2]
[378033385,1754674364884,-785.65,0.00021953,2]
[378033386,1754674364894,-1073.17,0.00021953,2]
[378033387,1754674364904,-2564.99,0.00021953,2]
[378033388,1754674364914,-1271.83,0.00021953,2]
[378033389,1754674364923,-501.58,0.00021953,2]
[378033390,1754674364932,-695.37,0.00021953,2]
[378033391,1754674364941,-561.21,0.00021953,2]
[378033392,1754674364950,-400.0,0.00021953,2]
[378033393,1754674364959,-1291.31,0.00021953,2]
[378033394,1754674364969,-400.0,0.00021953,2]
[378033395,1754674364978,-1430.86,0.00021953,2]
[378033396,1754674364988,-3151.61,0.00021953,2]
[378033397,1754674364997,-836.4,0.00021953,2]
[378033398,1754674365007,-850.6,0.00021953,2]
[378033399,1754674365016,-421.02,0.00021953,2]
[378033400,1754674365025,-2829.87,0.00021953,2]
[378033401,1754674365035,-400.0,0.00021953,2]
[378033402,1754674365044,-3147.45,0.00021953,2]
[378033403,1754674365054,-2412.01,0.00021953,2]
[378033404,1754674365062,-3174.96,0.00021953,2]
[378033405,1754674365072,-1344.29,0.00021953,2]
[378033406,1754674365082,-475.15,0.00021954,2]
[378033407,1754674365092,-353.74062439,0.00021954,2]
[378033408,1754674365106,-400.0,0.00021954,2]
[378033409,1754674365115,-400.0,0.00021954,2]
[378033410,1754674365124,-400.0,0.00021954,2]
[378033411,1754674365135,-400.0,0.00021954,2]
[378033412,1754674365144,-400.0,0.00021954,2]
[378033413,1754674365153,-400.0,0.00021954,2]
[378033414,1754674365162,-400.0,0.00021954,2]
[378033415,1754674365174,-548.6051906,0.00021954,2]
[378033416,1754674365186,-613.14,0.00021954,2]
[378033417,1754674365197,-400.0,0.00021954,2]
[378033418,1754674365207,-487.53,0.00021954,2]
[378033419,1754674365217,-400.0,0.00021954,2]
[378033420,1754674365227,-470.26,0.00021954,2]
[378033421,1754674365237,-400.0,0.00021954,2]
[378033422,1754674365247,-400.0,0.00021954,2]
[378033423,1754674365256,-400.0,0.00021954,2]
[378033424,1754674365265,-400.0,0.00021954,2]
[378033425,1754674365274,-400.0,0.00021954,2]
[378033426,1754674365284,-462.27,0.00021954,2]
[378033427,1754674365293,-580.1,0.00021954,2]
[378033428,1754674365303,-333.62453492,0.00021954,2]
[378033429,1754674365311,-400.0,0.00021954,2]
[378033430,1754674365321,-400.0,0.00021954,2]
[378033431,1754674365330,-479.7,0.00021954,2]
[378033432,1754674365339,-568.03,0.00021954,2]
[378033433,1754674365348,-400.0,0.00021954,2]
[378033434,1754674365357,-400.0,0.00021954,2]
[378033435,1754674365367,-421.44,0.00021954,2]
[378033436,1754674365376,-418.64,0.00021954,2]
[378033437,1754674365385,-504.49,0.00021954,2]
[378033438,1754674365394,-700.9,0.00021954,2]
[378033439,1754674365403,-400.0,0.00021954,2]
[378033440,1754674365412,-520.77,0.00021954,2]
[378033441,1754674365421,-400.0,0.00021954,2]
[378033442,1754674365431,-400.0,0.00021954,2]
[378033443,1754674365440,-400.0,0.00021954,2]
[378033444,1754674365450,-400.0,0.00021954,2]
[378033445,1754674365459,-400.0,0.00021954,2]
[378033446,1754674365468,-400.0,0.00021954,2]
[378033447,1754674365477,-400.0,0.00021954,2]
[378033448,1754674365486,-484.85,0.00021954,2]
[378033449,1754674365495,-432.17,0.00021954,2]
[378033450,1754674365504,-400.0,0.00021954,2]
[378033451,1754674365513,-1178.17,0.00021954,2]
[378033452,1754674365522,-456.42,0.00021954,2]
[378033453,1754674365531,-400.0,0.00021954,2]
[378033454,1754674365540,-400.0,0.00021954,2]
[378033455,1754674365549,-534.77,0.00021954,2]
[378033456,1754674365557,-400.0,0.00021954,2]
[378033457,1754674365566,-400.0,0.00021954,2]
[378033458,1754674365575,-435.31,0.00021954,2]
[378033459,1754674365585,-4517.84,0.00021954,2]
[378033460,1754674365593,-400.0,0.00021954,2]
[378033461,1754674365602,-477.72,0.00021954,2]
[378033462,1754674365611,-400.0,0.00021954,2]
[378033463,1754674365620,-400.0,0.00021954,2]
[378033464,1754674365629,-4062.08,0.00021954,2]
[378033465,1754674365639,-400.0,0.00021954,2]
[378033466,1754674365649,-400.0,0.00021954,2]
[378033467,1754674365658,-400.0,0.00021954,2]
[378033468,1754674365667,-735.5,0.00021954,2]
[378033469,1754674365676,-1368.24,0.00021954,2]
[378033470,1754674365685,-400.0,0.00021954,2]
[378033471,1754674365694,-282.4135448,0.00021954,2]
[378033472,1754674365703,-400.0,0.00021954,2]
[378033473,1754674365712,-400.0,0.00021954,2]
[378033474,1754674365721,-1187.72,0.00021954,2]
[378033475,1754674365730,-400.0,0.00021954,2]
[378033476,1754674365739,-450.77,0.00021954,2]
[378033477,1754674365750,-400.0,0.00021954,2]
[378033478,1754674365759,-400.0,0.00021954,2]
[378033479,1754674365768,-400.0,0.00021954,2]
[378033480,1754674365777,-1471.83,0.00021954,2]
[378033481,1754674365787,-557.2,0.00021954,2]
[378033482,1754674365796,-400.0,0.00021954,2]
[378033483,1754674365805,-436.5,0.00021954,2]
[378033484,1754674365814,-439.47,0.00021954,2]
[378033485,1754674365823,-1359.72,0.00021954,2]
[378033486,1754674365833,-400.0,0.00021954,2]
[378033487,1754674365842,-400.0,0.00021954,2]
[378033488,1754674365851,-1098.38,0.00021954,2]
[378033489,1754674365860,-505.49,0.00021954,2]
[378033490,1754674365870,-493.47,0.00021954,2]
[378033491,1754674365879,-400.0,0.00021954,2]
[378033492,1754674365888,-400.0,0.00021954,2]
[378033493,1754674365898,-412.55,0.00021954,2]
[378033494,1754674365907,-496.49,0.00021954,2]
[378033495,1754674365916,-808.39,0.00021954,2]
[378033496,1754674365925,-400.0,0.00021954,2]
[378033497,1754674365934,-400.0,0.00021954,2]
[378033498,1754674365943,-496.35392901,0.00021954,2]
[378033499,1754674365954,-400.0,0.00021954,2]
[378033500,1754674365964,-1155.05,0.00021954,2]
[378033501,1754674365973,-485.06,0.00021954,2]
[378033502,1754674365983,-521.07,0.00021954,2]
[378033503,1754674365992,-643.05,0.00021954,2]
[378033504,1754674366003,-489.19,0.00021954,2]
[378033505,1754674366013,-760.76,0.00021954,2]
[378033506,1754674366022,-576.62,0.00021954,2]
[378033507,1754674366032,-437.71,0.00021954,2]
[378033508,1754674366042,-704.59,0.00021954,2]
[378033509,1754674366051,-919.49,0.00021954,2]
[378033510,1754674366060,-1259.56,0.00021954,2]
[378033511,1754674366069,-508.27,0.00021954,2]
[378033512,1754674366079,-400.0,0.00021954,2]
[378033513,1754674366088,-1124.56,0.00021954,2]
[378033514,1754674366100,-2507.35,0.00021954,2]
[378033515,1754674366109,-424.0,0.00021954,2]
[378033516,1754674366118,-400.0,0.00021954,2]
[378033517,1754674366128,-1219.23,0.00021954,2]
[378033518,1754674366137,-400.0,0.00021954,2]
[378033519,1754674366146,-400.0,0.00021954,2]
[378033520,1754674366155,-738.95,0.00021954,2]
[378033521,1754674366164,-739.75,0.00021954,2]
[378033522,1754674366175,-429.41,0.00021954,2]
[378033523,1754674366185,-408.09,0.00021954,2]
[378033524,1754674366194,-22590.06,0.00021954,2]
[378033525,1754674366203,-400.0,0.00021954,2]
[378033526,1754674366212,-400.0,0.00021954,2]
[378033527,1754674366221,-444.79,0.00021954,2]
[378033528,1754674366231,-400.0,0.00021954,2]
[378033529,1754674366241,-1009.83,0.00021954,2]
[378033530,1754674366250,-612.57,0.00021954,2]
[378033531,1754674366259,-400.0,0.00021954,2]
[378033532,1754674366273,-412.85,0.00021954,2]
[378033533,1754674366283,-400.0,0.00021954,2]
[378033534,1754674366293,-1019.52,0.00021954,2]
[378033535,1754674366302,-602.24,0.00021954,2]
[378033536,1754674366314,-400.0,0.00021954,2]
[378033537,1754674366326,-702.83,0.00021954,2]
[378033538,1754674366336,-400.0,0.00021954,2]
[378033539,1754674366346,-401.02,0.00021954,2]
[378033540,1754674366356,-480.03,0.00021954,2]
[378033541,1754674366368,-414.37,0.00021954,2]
[378033542,1754674366378,-400.0,0.00021954,2]
[378033543,1754674366390,-420.84,0.00021954,2]
[378033544,1754674366400,-469.13,0.00021954,2]
[378033545,1754674366410,-1156.43,0.00021954,2]
[378033546,1754674366420,-1173.27,0.00021954,2]
[378033547,1754674366429,-414.41,0.00021954,2]
[378033548,1754674366439,-2082.95,0.00021954,2]
[378033549,1754674366449,-400.0,0.00021954,2]
[378033550,1754674366458,-1355.51,0.00021954,2]
[378033551,1754674366467,-400.0,0.00021954,2]
[378033552,1754674366477,-712.97,0.00021954,2]
[378033553,1754674366488,-400.0,0.00021954,2]
[378033554,1754674366498,-1433.19,0.00021954,2]
[378033555,1754674366508,-400.0,0.00021954,2]
[378033556,1754674366518,-1279.98,0.00021954,2]
[378033557,1754674366528,-400.0,0.00021954,2]
[378033558,1754674366537,-2544.43,0.00021954,2]
[378033559,1754674366547,-545.33,0.00021954,2]
[378033560,1754674366557,-3304.91,0.00021954,2]
[378033561,1754674366566,-1361.67,0.00021954,2]
[378033562,1754674366580,-680.15,0.00021954,2]
[378033563,1754674366590,-446.42,0.00021954,2]
[378033564,1754674366600,-1015.86,0.00021954,2]
[378033565,1754674366610,-263.5481455,0.00021954,2]
[378033566,1754674366620,-400.0,0.00021954,2]
[378033567,1754674366629,-400.0,0.00021954,2]
[378033568,1754674366639,-472.84,0.00021954,2]
[378033569,1754674366649,-6584.79,0.00021954,2]
[378033570,1754674366658,-400.0,0.00021954,2]
[378033571,1754674366667,-645.58,0.00021954,2]
[378033572,1754674366677,-434.44,0.00021954,2]
[378033573,1754674366687,-510.44,0.00021954,2]
[378033574,1754674366697,-400.0,0.00021954,2]
[378033575,1754674366707,-400.0,0.00021954,2]
[378033576,1754674366717,-637.96,0.00021954,2]
[378033577,1754674366728,-4087.5,0.00021954,2]
[378033578,1754674366738,-400.0,0.00021954,2]
[378033579,1754674366749,-1167.59,0.00021954,2]
[378033580,1754674366759,-839.14,0.00021954,2]
[378033581,1754674366769,-423.67,0.00021954,2]
[378033582,1754674366779,-400.0,0.00021954,2]
[378033583,1754674366789,-1923.32,0.00021954,2]
[378033584,1754674366799,-2534.72,0.00021954,2]
[378033585,1754674366809,-3221.54,0.00021954,2]
[378033586,1754674366819,-400.0,0.00021954,2]
[378033587,1754674366829,-2686.59,0.00021954,2]
[378033588,1754674366838,-2767.77,0.00021954,2]
[378033589,1754674366850,-4079.49,0.00021954,2]
[378033590,1754674366860,-1045.66,0.00021954,2]
[378033591,1754674366870,-3290.29,0.00021955,2]
[378033592,1754674366881,-2369.18,0.00021955,2]
[378033593,1754674366891,-13166.57,0.00021955,2]
[378033594,1754674366901,-1590.7,0.00021955,2]
[378033595,1754674366911,-1258.97,0.00021955,2]
[378033596,1754674366922,-2052.34,0.00021955,2]
[378033597,1754674366932,-508.01,0.00021955,2]
[378033598,1754674366942,-5234.06,0.00021955,2]
[378033599,1754674366952,-400.0,0.00021955,2]
[378033600,1754674366962,-2455.21,0.00021955,2]
[378033601,1754674366972,-1846.96,0.00021955,2]
[378033602,1754674366982,-1243.92,0.00021955,2]
[378033603,1754674366992,-1638.01,0.00021955,2]
[378033604,1754674367006,-1639.76,0.00021955,2]
[378033605,1754674367015,-1386.66,0.00021955,2]
[378033606,1754674367024,-2763.15,0.00021955,2]
[378033607,1754674367035,-3536.52,0.00021955,2]
[378033608,1754674367044,-2140.87,0.00021955,2]
[378033609,1754674367053,-1711.31,0.00021955,2]
[378033610,1754674367063,-449.95,0.00021955,2]
[378033611,1754674367072,-219.7702385,0.00021959,2]
[378033612,1754674367082,-219.7702385,0.00021959,2]
[378033613,1754674367091,-150.0,0.00021978,2]
[378033614,1754674367104,-529.38247458,0.00021979,2]
[378033615,1754674367114,-674.70315388,0.00021981,2]
[378033616,1754674367123,-820.02383317,0.00021982,2]
[378033617,1754674367133,-965.34451247,0.00021983,2]
[378033618,1754674367143,-1110.66519177,0.00021985,2]
[378033619,1754674367153,-1255.98587106,0.00021986,2]
[378033620,1754674367163,-1401.30655036,0.00021987,2]
[378033621,1754674367174,-1546.62722966,0.00021989,2]
[378033622,1754674367185,-15626.91439356,0.0002199,2]
[378033623,1754674367195,-1691.94790895,0.0002199,2]
[378033624,1754674367205,-502.64682145,0.00021999,2]
[378033625,1754674367214,-1330.92815326,0.00022,30]
[378033626,1754674367224,-357952.04451536,0.00022,4]
[378033627,1754674367234,-776.91028966,0.00022,7]
[378033628,1754674367243,-500.0,0.00022,2]
[378033629,1754674367254,-300.0,0.00022,2]
[378033630,1754674367265,-4000.0,0.00022,4]
[378033631,1754674367274,-776.71,0.00022,2]
[378033632,1754674367284,-200.0,0.000221,2]
[378033633,1754674367294,-1294.0,0.00022126,2]
[378033634,1754674367303,-2025.0,0.00022126,2]
[378033635,1754674367313,-565.0,0.00022126,2]
[378033636,1754674367322,-959.0,0.00022126,2]
[378033637,1754674367331,-598.0,0.00022126,2]
[378033638,1754674367341,-1653.0,0.00022126,2]
[378033639,1754674367351,-892.0,0.00022126,2]
[378033640,1754674367360,-1171.0,0.00022126,2]
[378033641,1754674367370,-810.0,0.00022126,2]
[378033642,1754674367379,-150.0,0.00022154,2]
[378033643,1754674367388,-150.0,0.00022154,2]
[378033644,1754674367398,-150.0,0.00022154,2]
[378033645,1754674367408,-150.0,0.00022154,2]
[378033646,1754674367418,-150.0,0.00022154,2]
[378033647,1754674367427,-150.0,0.00022154,2]
[378033648,1754674367437,-150.0,0.00022154,2]
[378033649,1754674367448,-500.0,0.00022192,2]
[378033650,1754674367458,-450.0,0.00022216,2]
[378033651,1754674367468,-400.0,0.00022226,2]
[378033652,1754674367478,-400.0,0.00022226,2]
[378033653,1754674367487,-661.11,0.00022226,2]
[378033654,1754674367497,-2954.91,0.00022226,2]
[378033655,1754674367507,-2275.54,0.00022226,2]
[378033656,1754674367516,-946.48,0.00022226,2]
[378033657,1754674367526,-7691.76,0.00022226,2]
[378033658,1754674367538,-848.32,0.00022226,2]
[378033659,1754674367548,-1032.75,0.00022226,2]
[378033660,1754674367557,-1855.93,0.00022226,2]
[378033661,1754674367566,-600.19,0.00022226,2]
[378033662,1754674367574,-675.93,0.00022226,2]
[378033663,1754674367582,-5291.16,0.00022226,2]
[378033664,1754674367591,-3569.89,0.00022226,2]
[378033665,1754674367600,-2731.24,0.00022226,2]
[378033666,1754674367609,-643.22,0.00022226,2]
[378033667,1754674367618,-1935.23,0.00022226,2]
[378033668,1754674367629,-821.85,0.00022226,2]
[378033669,1754674367639,-774.94,0.00022226,2]
[378033670,1754674367648,-447.97,0.00022226,2]
[378033671,1754674367659,-538.44,0.00022226,2]
[378033672,1754674367669,-947.0,0.00022227,2]
[378033673,1754674367679,-1798.0,0.00022227,2]
[378033674,1754674367689,-977.0,0.00022227,2]
[378033675,1754674367698,-155.776285,0.00022227,2]
[378033676,1754674367708,-156.799685,0.00022227,2]
[378033677,1754674367717,-183.659282,0.00022227,2]
[378033678,1754674367727,-1000.0,0.00022227,2]
[378033679,1754674367737,-2162.28,0.00022227,2]
[378033680,1754674367746,-788.52,0.00022227,2]
[378033681,1754674367757,-606.57,0.00022227,2]
[378033682,1754674367767,-691.64,0.00022227,2]
[378033683,1754674367777,-504.23,0.00022227,2]
[378033684,1754674367786,-672.8,0.00022227,2]
[378033685,1754674367796,-711.68,0.00022227,2]
[378033686,1754674367806,-767.72,0.00022227,2]
[378033687,1754674367815,-411.37,0.00022227,2]
[378033688,1754674367825,-692.39,0.00022227,2]
[378033689,1754674367835,-460.18,0.00022227,2]
[378033690,1754674367844,-680.33,0.00022227,2]
[378033691,1754674367854,-418.64,0.00022227,2]
[378033692,1754674367863,-400.0,0.00022227,2]
[378033693,1754674367873,-1053.65,0.00022227,2]
[378033694,1754674367883,-591.98,0.00022227,2]
[378033695,1754674367891,-400.0,0.00022227,2]
[378033696,1754674367899,-400.0,0.00022227,2]
[378033697,1754674367908,-400.0,0.00022227,2]
[378033698,1754674367918,-820.42,0.00022227,2]
[378033699,1754674367928,-540.05,0.00022227,2]
[378033700,1754674367937,-444.75,0.00022227,2]
[378033701,1754674367946,-400.0,0.00022227,2]
[378033702,1754674368216,-475.1,0.00022227,2]
[378033703,1754674368226,-1065.2,0.00022227,2]
[378033704,1754674368236,-663.95,0.00022227,2]
[378033705,1754674368245,-664.58,0.00022227,2]
[378033706,1754674368255,-552.2,0.00022227,2]
[378033707,1754674368265,-795.59,0.00022227,2]
[378033708,1754674368274,-1009.8,0.00022227,2]
[378033709,1754674368284,-400.0,0.00022227,2]
[378033710,1754674368293,-400.0,0.00022227,2]
[378033711,1754674368303,-758.91,0.00022227,2]
[378033712,1754674368312,-400.0,0.00022227,2]
[378033713,1754674368322,-405.9,0.00022227,2]
[378033714,1754674368331,-794.09,0.00022227,2]
[378033715,1754674368342,-860.42,0.00022227,2]
[378033716,1754674368352,-497.38,0.00022227,2]
[378033717,1754674368364,-400.0,0.00022227,2]
[378033718,1754674368376,-675.98,0.00022227,2]
[378033719,1754674368386,-400.0,0.00022227,2]
[378033720,1754674368395,-1322.96,0.00022227,2]
[378033721,1754674368405,-515.94,0.00022227,2]
[378033722,1754674368415,-492.09,0.00022227,2]
[378033723,1754674368424,-1269.65,0.00022227,2]
[378033724,1754674368433,-1150.11,0.00022227,2]
[378033725,1754674368443,-729.76,0.00022227,2]
[378033726,1754674368452,-786.33,0.00022227,2]
[378033727,1754674368462,-400.0,0.00022227,2]
[378033728,1754674368471,-400.0,0.00022227,2]
[378033729,1754674368481,-400.0,0.00022227,2]
[378033730,1754674368490,-933.94,0.00022227,2]
[378033731,1754674368501,-1309.0,0.00022227,2]
[378033732,1754674368511,-630.93,0.00022227,2]
[378033733,1754674368521,-1106.53,0.00022227,2]
[378033734,1754674368531,-1201.36,0.00022227,2]
[378033735,1754674368541,-400.0,0.00022227,2]
[378033736,1754674368551,-623.4,0.00022227,2]
[378033737,1754674368560,-1959.17,0.00022227,2]
[378033738,1754674368570,-1959.17,0.00022227,2]
[378033739,1754674368579,-400.0,0.00022227,2]
[378033740,1754674368589,-948.04,0.00022227,2]
[378033741,1754674368598,-1232.12,0.00022227,2]
[378033742,1754674368607,-501.95,0.00022227,2]
[378033743,1754674368618,-400.0,0.00022227,2]
[378033744,1754674368627,-1029.5,0.00022227,2]
[378033745,1754674368637,-400.0,0.00022227,2]
[378033746,1754674368646,-400.0,0.00022227,2]
[378033747,1754674368656,-1075.7,0.00022227,2]
[378033748,1754674368668,-1017.42,0.00022227,2]
[378033749,1754674368680,-400.0,0.00022227,2]
[378033750,1754674368689,-467.67,0.00022227,2]
[378033751,1754674368701,-743.32,0.00022227,2]
[378033752,1754674368712,-466.11,0.00022227,2]
[378033753,1754674368722,-496.93,0.00022227,2]
[378033754,1754674368732,-400.0,0.00022227,2]
[378033755,1754674368742,-400.0,0.00022227,2]
[378033756,1754674368753,-1260.4,0.00022227,2]
[378033757,1754674368763,-470.18,0.00022227,2]
[378033758,1754674368773,-2588.08,0.00022227,2]
[378033759,1754674368782,-400.0,0.00022227,2]
[378033760,1754674368792,-641.02,0.00022227,2]
[378033761,1754674368801,-3797.91,0.00022227,2]
[378033762,1754674368811,-400.0,0.00022227,2]
[378033763,1754674368821,-1241.75,0.00022227,2]
[378033764,1754674368831,-1052.14,0.00022227,2]
[378033765,1754674368841,-889.41,0.00022227,2]
[378033766,1754674368850,-739.75,0.00022227,2]
[378033767,1754674368860,-1099.06,0.00022227,2]
[378033768,1754674368869,-1630.68,0.00022227,2]
[378033769,1754674368878,-3365.51,0.00022227,2]
[378033770,1754674368888,-2289.35,0.00022227,2]
[378033771,1754674368898,-1124.14,0.00022227,2]
[378033772,1754674368908,-1750.29,0.00022227,2]
[378033773,1754674368917,-400.0,0.00022227,2]
[378033774,1754674368927,-838.76,0.00022227,2]
[378033775,1754674368937,-1564.85,0.00022227,2]
[378033776,1754674368946,-752.21,0.00022227,2]
[378033777,1754674368955,-1259.02,0.00022227,2]
[378033778,1754674368965,-1360.45,0.00022227,2]
[378033779,1754674368974,-400.0,0.00022227,2]
[378033780,1754674368984,-400.0,0.00022227,2]
[378033781,1754674368994,-447.46,0.00022227,2]
[378033782,1754674369005,-457.11,0.00022227,2]
[378033783,1754674369015,-907.31,0.00022227,2]
[378033784,1754674369024,-635.96,0.00022227,2]
[378033785,1754674369033,-516.43,0.00022227,2]
[378033786,1754674369043,-841.87,0.00022227,2]
[378033787,1754674369052,-2511.44,0.00022227,2]
[378033788,1754674369061,-400.0,0.00022227,2]
[378033789,1754674369071,-909.41,0.00022227,2]
[378033790,1754674369080,-400.0,0.00022227,2]
[378033791,1754674369090,-633.54,0.00022227,2]
[378033792,1754674369103,-1757.88,0.00022227,2]
[378033793,1754674369113,-3698.85,0.00022227,2]
[378033794,1754674369122,-400.0,0.00022227,2]
[378033795,1754674369132,-748.76,0.00022227,2]
[378033796,1754674369142,-1660.57,0.00022227,2]
[378033797,1754674369151,-466.12,0.00022227,2]
[378033798,1754674369161,-724.03,0.00022227,2]
[378033799,1754674369171,-2130.8,0.00022227,2]
[378033800,1754674369183,-420.45,0.00022227,2]
[378033801,1754674369193,-1000.99,0.00022227,2]
[378033802,1754674369203,-956.66,0.00022227,2]
[378033803,1754674369212,-825.21,0.00022227,2]
[378033804,1754674369222,-1301.7,0.00022227,2]
[378033805,1754674369231,-400.0,0.00022227,2]
[378033806,1754674369241,-1094.31,0.00022227,2]
[378033807,1754674369251,-815.06,0.00022227,2]
[378033808,1754674369261,-498.58,0.00022227,2]
[378033809,1754674369272,-1195.76,0.00022227,2]
[378033810,1754674369282,-442.27,0.00022227,2]
[378033811,1754674369292,-552.06,0.00022227,2]
[378033812,1754674369301,-484.27,0.00022227,2]
[378033813,1754674369311,-624.41,0.00022227,2]